[Event "*** SCC Grand Prix: Titled Tuesday Blitz"]
[Site "Chess.com"]
[Date "2020.08.25"]
[Round "3"]
[White "TomasKapitanchuk"]
[Black "binbin239"]
[Result "0-1"]
[WhiteElo "2384"]
[BlackElo "2591"]
[TimeControl "180+1"]
[EndTime "10:30:50 PDT"]
[Termination "binbin239 won on time"]

1. e4 {[%clk 0:03:00.9]} 1... c5 {[%clk 0:02:52.7]} 2. Nf3 {[%clk 0:03:01.1]}
2... Nc6 {[%clk 0:02:41.8]} 3. Bb5 {[%clk 0:03:00.1]} 3... g6 {[%clk 0:02:41]}
4. Bxc6 {[%clk 0:02:59.5]} 4... bxc6 {[%clk 0:02:40.9]} 5. O-O {[%clk
0:02:56.1]} 5... Bg7 {[%clk 0:02:40.3]} 6. Re1 {[%clk 0:02:56.1]} 6... Nf6
{[%clk 0:02:40.2]} 7. e5 {[%clk 0:02:55.6]} 7... Nd5 {[%clk 0:02:39.9]} 8. c4
{[%clk 0:02:54.2]} 8... Nb6 {[%clk 0:02:39.6]} 9. b3 {[%clk 0:02:54.4]} 9... O-O
{[%clk 0:02:38.1]} 10. d4 {[%clk 0:02:54.7]} 10... cxd4 {[%clk 0:02:37.3]} 11.
Qxd4 {[%clk 0:02:55.6]} 11... d6 {[%clk 0:02:36.8]} 12. Qh4 {[%clk 0:02:55.9]}
12... Nd7 {[%clk 0:02:29]} 13. Bb2 {[%clk 0:02:47.5]} 13... Rb8 {[%clk
0:02:13.2]} 14. Nbd2 {[%clk 0:02:35.5]} 14... dxe5 {[%clk 0:02:09.4]} 15. Rad1
{[%clk 0:02:33.5]} 15... Qa5 {[%clk 0:02:06.4]} 16. Qxe7 {[%clk 0:02:28.3]}
16... Qxa2 {[%clk 0:02:03]} 17. Bc3 {[%clk 0:02:01.8]} 17... Qc2 {[%clk
0:02:01.9]} 18. Rc1 {[%clk 0:01:55.2]} 18... Qf5 {[%clk 0:01:59.8]} 19. Nxe5
{[%clk 0:01:49.3]} 19... Nxe5 {[%clk 0:01:56]} 20. Bxe5 {[%clk 0:01:50.2]} 20...
Rb7 {[%clk 0:01:50.3]} 21. Qc5 {[%clk 0:01:16.8]} 21... Bxe5 {[%clk 0:01:31.2]}
22. Rxe5 {[%clk 0:01:13.2]} 22... Qf4 {[%clk 0:01:30.8]} 23. Re3 {[%clk
0:01:11.4]} 23... Bf5 {[%clk 0:01:26.6]} 24. Rce1 {[%clk 0:01:07.2]} 24... Rd7
{[%clk 0:01:23.8]} 25. Nf3 {[%clk 0:01:03.8]} 25... Qc7 {[%clk 0:01:18.9]} 26.
Nh4 {[%clk 0:00:55.7]} 26... Be6 {[%clk 0:01:16.5]} 27. Nf3 {[%clk 0:00:55.8]}
27... h6 {[%clk 0:01:07.7]} 28. Nd4 {[%clk 0:00:52.9]} 28... Bg4 {[%clk
0:01:01.2]} 29. Nxc6 {[%clk 0:00:47.9]} 29... Kg7 {[%clk 0:00:46.2]} 30. Qe5+
{[%clk 0:00:28.3]} 30... Kh7 {[%clk 0:00:43.2]} 31. Qxc7 {[%clk 0:00:22.3]}
31... Rxc7 {[%clk 0:00:43]} 32. Ne5 {[%clk 0:00:22.6]} 32... Be6 {[%clk
0:00:42.3]} 33. h3 {[%clk 0:00:21.5]} 33... Rb8 {[%clk 0:00:41.7]} 34. Rd1
{[%clk 0:00:20.2]} 34... Rcb7 {[%clk 0:00:41]} 35. Rdd3 {[%clk 0:00:20.7]} 35...
Bf5 {[%clk 0:00:39.6]} 36. Rc3 {[%clk 0:00:21.2]} 36... Kg7 {[%clk 0:00:39.6]}
37. c5 {[%clk 0:00:21.2]} 37... Rc7 {[%clk 0:00:38.7]} 38. g4 {[%clk 0:00:19.7]}
38... Be6 {[%clk 0:00:38.1]} 39. Red3 {[%clk 0:00:19.8]} 39... Rb5 {[%clk
0:00:37.6]} 40. b4 {[%clk 0:00:11.7]} 40... Rxb4 {[%clk 0:00:37.2]} 41. c6
{[%clk 0:00:12.6]} 41... Re4 {[%clk 0:00:33.9]} 42. Nd7 {[%clk 0:00:11.1]} 42...
Rc4 {[%clk 0:00:31.1]} 43. Rxc4 {[%clk 0:00:09.9]} 43... Bxc4 {[%clk 0:00:31]}
44. Rc3 {[%clk 0:00:04.6]} 44... Bd5 {[%clk 0:00:27.8]} 45. Nb8 {[%clk
0:00:04.6]} 45... a5 {[%clk 0:00:25]} 46. f4 {[%clk 0:00:02]} 46... a4 {[%clk
0:00:24.4]} 47. Kf2 {[%clk 0:00:02.6]} 47... Bb3 {[%clk 0:00:19.9]} 48. Na6
{[%clk 0:00:01.4]} 48... Rc8 {[%clk 0:00:19.7]} 49. c7 {[%clk 0:00:01.7]} 49...
Be6 {[%clk 0:00:19.1]} 0-1

[Event "*** SCC Grand Prix: Titled Tuesday Blitz"]
[Site "Chess.com"]
[Date "2020.08.25"]
[Round "3"]
[White "dpopadic"]
[Black "Flawless_Fighter"]
[Result "0-1"]
[WhiteElo "2370"]
[BlackElo "2561"]
[TimeControl "180+1"]
[EndTime "10:30:51 PDT"]
[Termination "Flawless_Fighter won by checkmate"]

1. e4 {[%clk 0:03:00.9]} 1... c5 {[%clk 0:02:59.2]} 2. Nc3 {[%clk 0:03:00.8]}
2... e6 {[%clk 0:02:59.4]} 3. d3 {[%clk 0:03:00]} 3... Nc6 {[%clk 0:02:59.1]} 4.
g4 {[%clk 0:03:00]} 4... Nge7 {[%clk 0:02:55.5]} 5. Bg2 {[%clk 0:03:00.1]} 5...
g6 {[%clk 0:02:55.7]} 6. Nh3 {[%clk 0:02:59.7]} 6... Bg7 {[%clk 0:02:55.3]} 7.
O-O {[%clk 0:02:58.4]} 7... d6 {[%clk 0:02:54.6]} 8. f4 {[%clk 0:02:53.6]} 8...
h5 {[%clk 0:02:40.8]} 9. g5 {[%clk 0:02:53.3]} 9... Nd4 {[%clk 0:02:40.5]} 10.
Ne2 {[%clk 0:02:51.3]} 10... Qb6 {[%clk 0:02:32.3]} 11. Kh1 {[%clk 0:02:47.6]}
11... Bd7 {[%clk 0:02:29]} 12. c3 {[%clk 0:02:47]} 12... Nxe2 {[%clk 0:02:25.4]}
13. Qxe2 {[%clk 0:02:47.1]} 13... O-O-O {[%clk 0:01:55.6]} 14. Be3 {[%clk
0:02:45.9]} 14... Qa6 {[%clk 0:01:35.7]} 15. Rfd1 {[%clk 0:02:38.5]} 15... Kb8
{[%clk 0:01:27.3]} 16. a4 {[%clk 0:02:32.2]} 16... Rc8 {[%clk 0:01:24.2]} 17.
Nf2 {[%clk 0:02:13.7]} 17... d5 {[%clk 0:01:18.4]} 18. Qc2 {[%clk 0:01:51.7]}
18... Ka8 {[%clk 0:01:04.6]} 19. Qb3 {[%clk 0:01:36.9]} 19... Rhd8 {[%clk
0:00:57.8]} 20. Qa3 {[%clk 0:01:35.7]} 20... d4 {[%clk 0:00:39.6]} 21. Bd2
{[%clk 0:01:08.1]} 21... e5 {[%clk 0:00:39.5]} 22. cxd4 {[%clk 0:00:58.3]} 22...
exd4 {[%clk 0:00:32.8]} 23. Rdc1 {[%clk 0:00:54.5]} 23... Bf8 {[%clk 0:00:27.2]}
24. Qa2 {[%clk 0:00:52.7]} 24... Be6 {[%clk 0:00:26.5]} 25. Qb1 {[%clk
0:00:47.4]} 25... c4 {[%clk 0:00:26.5]} 26. dxc4 {[%clk 0:00:44.8]} 26... Bxc4
{[%clk 0:00:26.7]} 27. b3 {[%clk 0:00:40]} 27... Be6 {[%clk 0:00:26.8]} 28. Qb2
{[%clk 0:00:38]} 28... Nc6 {[%clk 0:00:22.9]} 29. Bf1 {[%clk 0:00:33.7]} 29...
d3 {[%clk 0:00:19.1]} 30. Bc3 {[%clk 0:00:18.8]} 30... Qb6 {[%clk 0:00:17.1]}
31. Kg2 {[%clk 0:00:16.7]} 31... h4 {[%clk 0:00:16.3]} 32. h3 {[%clk 0:00:15.9]}
32... Qe3 {[%clk 0:00:13.2]} 33. Bd2 {[%clk 0:00:10.4]} 33... Qg3+ {[%clk
0:00:13]} 34. Kh1 {[%clk 0:00:10.6]} 34... Qxf2 {[%clk 0:00:13.2]} 35. b4 {[%clk
0:00:08.8]} 35... Nd4 {[%clk 0:00:13.2]} 36. Bc3 {[%clk 0:00:06.6]} 36... Qf3+
{[%clk 0:00:12.3]} 37. Bg2 {[%clk 0:00:05.8]} 37... Qxf4 {[%clk 0:00:12.2]} 38.
Bxd4 {[%clk 0:00:05.5]} 38... Bd6 {[%clk 0:00:11.1]} 39. Bg1 {[%clk 0:00:04.9]}
39... d2 {[%clk 0:00:10]} 40. Rxc8+ {[%clk 0:00:04.6]} 40... Rxc8 {[%clk
0:00:10.3]} 41. Rd1 {[%clk 0:00:04.7]} 41... Qg3 {[%clk 0:00:08.3]} 42. Qxd2
{[%clk 0:00:04]} 42... Bxh3 {[%clk 0:00:08.4]} 43. Qxd6 {[%clk 0:00:03]} 43...
Qxg2# {[%clk 0:00:08.1]} 0-1

[Event "*** SCC Grand Prix: Titled Tuesday Blitz"]
[Site "Chess.com"]
[Date "2020.08.25"]
[Round "3"]
[White "Dr-Bassem"]
[Black "Sophist4Life"]
[Result "0-1"]
[WhiteElo "2775"]
[BlackElo "2446"]
[TimeControl "180+1"]
[EndTime "10:30:54 PDT"]
[Termination "Sophist4Life won on time"]

1. e4 {[%clk 0:02:40.3]} 1... c5 {[%clk 0:02:59.4]} 2. Nf3 {[%clk 0:02:39.3]}
2... d6 {[%clk 0:02:59.6]} 3. g3 {[%clk 0:02:38.3]} 3... Nc6 {[%clk 0:02:57.2]}
4. Bg2 {[%clk 0:02:37.6]} 4... g6 {[%clk 0:02:57.5]} 5. O-O {[%clk 0:02:37.9]}
5... Bg7 {[%clk 0:02:58]} 6. c3 {[%clk 0:02:38.2]} 6... Nf6 {[%clk 0:02:57]} 7.
Re1 {[%clk 0:02:34.8]} 7... O-O {[%clk 0:02:56.1]} 8. h3 {[%clk 0:02:33.2]} 8...
Rb8 {[%clk 0:02:54.6]} 9. d4 {[%clk 0:02:32.7]} 9... cxd4 {[%clk 0:02:54]} 10.
cxd4 {[%clk 0:02:33.6]} 10... d5 {[%clk 0:02:54.4]} 11. e5 {[%clk 0:02:32.6]}
11... Ne4 {[%clk 0:02:54.6]} 12. Nbd2 {[%clk 0:02:28.2]} 12... Nxd2 {[%clk
0:02:53.7]} 13. Bxd2 {[%clk 0:02:28.7]} 13... h6 {[%clk 0:02:48.8]} 14. Bf4
{[%clk 0:02:22.8]} 14... Kh7 {[%clk 0:02:47.6]} 15. Rc1 {[%clk 0:02:08.3]} 15...
Be6 {[%clk 0:02:42.4]} 16. Qd2 {[%clk 0:01:47.6]} 16... Rc8 {[%clk 0:02:38.6]}
17. Rc3 {[%clk 0:01:35.3]} 17... Na5 {[%clk 0:02:23.6]} 18. Rxc8 {[%clk
0:01:33.2]} 18... Bxc8 {[%clk 0:02:20.5]} 19. Rc1 {[%clk 0:01:32.7]} 19... Nc4
{[%clk 0:02:18.3]} 20. Qc3 {[%clk 0:01:32]} 20... Bd7 {[%clk 0:01:42.7]} 21. Ne1
{[%clk 0:01:07.5]} 21... Bc6 {[%clk 0:01:40.1]} 22. b3 {[%clk 0:01:03.7]} 22...
Nb6 {[%clk 0:01:38.4]} 23. Nd3 {[%clk 0:01:00.6]} 23... Nd7 {[%clk 0:01:36]} 24.
Nb4 {[%clk 0:00:53.4]} 24... Nb8 {[%clk 0:01:31.9]} 25. Qc5 {[%clk 0:00:52.9]}
25... f6 {[%clk 0:01:16.8]} 26. e6 {[%clk 0:00:45.5]} 26... f5 {[%clk
0:01:14.4]} 27. Qxa7 {[%clk 0:00:39.7]} 27... g5 {[%clk 0:01:11.4]} 28. Be5
{[%clk 0:00:24.7]} 28... Bxe5 {[%clk 0:01:09]} 29. dxe5 {[%clk 0:00:25.6]} 29...
f4 {[%clk 0:01:04.7]} 30. Nxc6 {[%clk 0:00:22.4]} 30... bxc6 {[%clk 0:00:39.4]}
31. g4 {[%clk 0:00:21.8]} 31... f3 {[%clk 0:00:38.1]} 32. Bf1 {[%clk 0:00:21.5]}
32... Rf4 {[%clk 0:00:35.5]} 33. a3 {[%clk 0:00:15.8]} 33... h5 {[%clk
0:00:32.7]} 34. gxh5 {[%clk 0:00:14.4]} 34... g4 {[%clk 0:00:32.4]} 35. Qe3
{[%clk 0:00:10.3]} 35... Qf8 {[%clk 0:00:31.8]} 36. h4 {[%clk 0:00:09.7]} 36...
Kg8 {[%clk 0:00:17.8]} 37. Bd3 {[%clk 0:00:07.7]} 37... Qh6 {[%clk 0:00:17]} 38.
Kh2 {[%clk 0:00:06.4]} 38... d4 {[%clk 0:00:14.8]} 39. Qd2 {[%clk 0:00:05.6]}
39... g3+ {[%clk 0:00:12.9]} 40. Kg1 {[%clk 0:00:03.6]} 40... gxf2+ {[%clk
0:00:11.7]} 41. Kf1 {[%clk 0:00:04.1]} 41... Qg7 {[%clk 0:00:08.1]} 42. Bg6
{[%clk 0:00:03.3]} 42... Qh6 {[%clk 0:00:06.4]} 43. Kxf2 {[%clk 0:00:02.6]}
43... Na6 {[%clk 0:00:04.7]} 44. Rg1 {[%clk 0:00:02.9]} 44... Nc5 {[%clk
0:00:04.5]} 45. b4 {[%clk 0:00:03]} 45... Kf8 {[%clk 0:00:04.4]} 46. bxc5 {[%clk
0:00:02.5]} 46... Rxh4 {[%clk 0:00:04.6]} 0-1

[Event "*** SCC Grand Prix: Titled Tuesday Blitz"]
[Site "Chess.com"]
[Date "2020.08.25"]
[Round "3"]
[White "Korchmar_Vasiliy"]
[Black "margarita_2703"]
[Result "1-0"]
[WhiteElo "2597"]
[BlackElo "2388"]
[TimeControl "180+1"]
[EndTime "10:30:54 PDT"]
[Termination "Korchmar_Vasiliy won by resignation"]

1. d4 {[%clk 0:03:00.9]} 1... Nf6 {[%clk 0:02:59.4]} 2. Nf3 {[%clk 0:03:00.9]}
2... d5 {[%clk 0:02:59.9]} 3. Bf4 {[%clk 0:03:01]} 3... c5 {[%clk 0:02:59.7]} 4.
e3 {[%clk 0:03:01.4]} 4... Nc6 {[%clk 0:03:00.2]} 5. Nbd2 {[%clk 0:03:01.3]}
5... Qb6 {[%clk 0:03:00.6]} 6. dxc5 {[%clk 0:03:00.5]} 6... Qxc5 {[%clk
0:02:58.4]} 7. a3 {[%clk 0:02:52.6]} 7... Bg4 {[%clk 0:02:57.8]} 8. c4 {[%clk
0:02:45.5]} 8... e5 {[%clk 0:02:52.3]} 9. Bg5 {[%clk 0:02:43.1]} 9... Ne4 {[%clk
0:02:35.7]} 10. b4 {[%clk 0:02:30.9]} 10... Qd6 {[%clk 0:02:06.6]} 11. cxd5
{[%clk 0:02:30.2]} 11... Qxd5 {[%clk 0:02:00.6]} 12. Bc4 {[%clk 0:02:27.7]}
12... Qxd2+ {[%clk 0:01:49.1]} 13. Nxd2 {[%clk 0:02:27.3]} 13... Bxd1 {[%clk
0:01:48.7]} 14. Nxe4 {[%clk 0:02:27.8]} 14... Bh5 {[%clk 0:01:45]} 15. O-O
{[%clk 0:02:08.1]} 15... Bg6 {[%clk 0:01:38.8]} 16. Bd5 {[%clk 0:02:04]} 16...
Be7 {[%clk 0:01:23.1]} 17. Bxe7 {[%clk 0:01:44.2]} 17... Kxe7 {[%clk 0:01:22.2]}
18. Bxc6 {[%clk 0:01:43.6]} 18... bxc6 {[%clk 0:01:22]} 19. Nc5 {[%clk
0:01:40.1]} 19... Rhd8 {[%clk 0:01:20.9]} 20. Rfd1 {[%clk 0:01:35.9]} 20... Rd5
{[%clk 0:01:15.6]} 21. e4 {[%clk 0:01:31.4]} 21... Rd4 {[%clk 0:01:10.6]} 22.
Rxd4 {[%clk 0:01:23.4]} 22... exd4 {[%clk 0:01:09.6]} 23. Rd1 {[%clk 0:01:23.8]}
23... Rd8 {[%clk 0:01:08.5]} 24. f3 {[%clk 0:01:06.7]} 24... f5 {[%clk 0:01:08]}
25. e5 {[%clk 0:00:35.9]} 25... f4 {[%clk 0:00:45.2]} 26. g3 {[%clk 0:00:35.8]}
26... d3 {[%clk 0:00:38.6]} 27. Kf2 {[%clk 0:00:27.8]} 27... Rd4 {[%clk
0:00:37]} 28. gxf4 {[%clk 0:00:17]} 28... Rxf4 {[%clk 0:00:34.9]} 29. Ke3 {[%clk
0:00:17.5]} 29... Rh4 {[%clk 0:00:25.4]} 30. Rd2 {[%clk 0:00:17.4]} 30... Rc4
{[%clk 0:00:21.5]} 31. Nxd3 {[%clk 0:00:09]} 31... Rc3 {[%clk 0:00:21.5]} 32. a4
{[%clk 0:00:08.3]} 32... Ra3 {[%clk 0:00:15.2]} 33. a5 {[%clk 0:00:05.9]} 33...
Rb3 {[%clk 0:00:13.5]} 34. Kd4 {[%clk 0:00:05.8]} 34... Bxd3 {[%clk 0:00:13]}
35. Rxd3 {[%clk 0:00:06.7]} 35... Rxb4+ {[%clk 0:00:13.1]} 36. Kc5 {[%clk
0:00:07.1]} 36... Rb5+ {[%clk 0:00:13.4]} 37. Kxc6 {[%clk 0:00:07.6]} 37... Rxa5
{[%clk 0:00:13.7]} 38. Rd7+ {[%clk 0:00:03.7]} 38... Ke6 {[%clk 0:00:13.7]} 39.
f4 {[%clk 0:00:04.4]} 39... Rc5+ {[%clk 0:00:09.6]} 40. Kxc5 {[%clk 0:00:04.8]}
40... Kxd7 {[%clk 0:00:09.8]} 41. h4 {[%clk 0:00:04.5]} 41... Ke6 {[%clk
0:00:09.2]} 42. Kb5 {[%clk 0:00:04.2]} 42... h5 {[%clk 0:00:06.4]} 43. Ka6
{[%clk 0:00:04.1]} 43... g5 {[%clk 0:00:06.5]} 44. fxg5 {[%clk 0:00:04.5]} 44...
Kxe5 {[%clk 0:00:06.8]} 45. Kxa7 {[%clk 0:00:05]} 45... Kf5 {[%clk 0:00:07]} 46.
Kb6 {[%clk 0:00:05.3]} 46... Kg6 {[%clk 0:00:07.5]} 47. Kc5 {[%clk 0:00:05.6]}
47... Kh7 {[%clk 0:00:07.7]} 48. Kd5 {[%clk 0:00:05.9]} 48... Kg6 {[%clk
0:00:07.9]} 49. Ke6 {[%clk 0:00:06.2]} 1-0

[Event "*** SCC Grand Prix: Titled Tuesday Blitz"]
[Site "Chess.com"]
[Date "2020.08.25"]
[Round "3"]
[White "gagtemp"]
[Black "Dannyyi"]
[Result "0-1"]
[WhiteElo "1953"]
[BlackElo "2273"]
[TimeControl "180+1"]
[EndTime "10:30:58 PDT"]
[Termination "Dannyyi won by resignation"]

1. e4 {[%clk 0:03:00.9]} 1... e5 {[%clk 0:02:57.4]} 2. Nf3 {[%clk 0:02:59.8]}
2... Nc6 {[%clk 0:02:52.1]} 3. Bc4 {[%clk 0:02:58.6]} 3... Nf6 {[%clk
0:02:48.8]} 4. d3 {[%clk 0:02:57.5]} 4... Bc5 {[%clk 0:02:39.9]} 5. O-O {[%clk
0:02:56.4]} 5... d6 {[%clk 0:02:39.1]} 6. a4 {[%clk 0:02:53.1]} 6... h6 {[%clk
0:02:37.6]} 7. Re1 {[%clk 0:02:48.4]} 7... Bg4 {[%clk 0:02:34]} 8. c3 {[%clk
0:02:45.2]} 8... O-O {[%clk 0:02:32]} 9. b4 {[%clk 0:02:39.1]} 9... Nxb4 {[%clk
0:02:14.9]} 10. cxb4 {[%clk 0:02:40]} 10... Bxb4 {[%clk 0:02:15.4]} 11. Nbd2
{[%clk 0:02:22.3]} 11... c6 {[%clk 0:02:05.4]} 12. h3 {[%clk 0:02:18]} 12... Bh5
{[%clk 0:02:00.2]} 13. Rb1 {[%clk 0:02:06.9]} 13... a5 {[%clk 0:01:54.5]} 14. g4
{[%clk 0:01:58.3]} 14... Bg6 {[%clk 0:01:29.3]} 15. Bb2 {[%clk 0:01:42.1]} 15...
Qd7 {[%clk 0:01:25]} 16. Qe2 {[%clk 0:01:33.1]} 16... b5 {[%clk 0:01:19.6]} 17.
Bb3 {[%clk 0:01:24.2]} 17... Rfe8 {[%clk 0:01:09.3]} 18. Rec1 {[%clk 0:01:16.8]}
18... Nxg4 {[%clk 0:00:48.5]} 19. hxg4 {[%clk 0:01:09.9]} 19... Qxg4+ {[%clk
0:00:49.1]} 20. Kf1 {[%clk 0:00:59.1]} 20... Bxd2 {[%clk 0:00:45.9]} 21. Nxd2
{[%clk 0:00:56.1]} 21... Qh3+ {[%clk 0:00:44.7]} 22. Ke1 {[%clk 0:00:55.9]}
22... d5 {[%clk 0:00:31.5]} 23. Qf3 {[%clk 0:00:42.4]} 23... Qh2 {[%clk
0:00:20.4]} 24. Nf1 {[%clk 0:00:41.5]} 24... Qh4 {[%clk 0:00:19]} 25. Qg3 {[%clk
0:00:39.8]} 25... Qf6 {[%clk 0:00:18.6]} 26. Qg2 {[%clk 0:00:22.5]} 26... dxe4
{[%clk 0:00:18]} 27. dxe4 {[%clk 0:00:22.3]} 27... Rad8 {[%clk 0:00:17.1]} 28.
Rd1 {[%clk 0:00:21.9]} 28... Qe7 {[%clk 0:00:12.2]} 29. Ng3 {[%clk 0:00:21]}
29... Qb4+ {[%clk 0:00:11.8]} 30. Kf1 {[%clk 0:00:19.2]} 30... Qxb3 {[%clk
0:00:12.2]} 31. Rxd8 {[%clk 0:00:17.3]} 31... Rxd8 {[%clk 0:00:13.1]} 32. Nf5
{[%clk 0:00:17.3]} 32... Bxf5 {[%clk 0:00:11.6]} 33. exf5 {[%clk 0:00:16.4]}
33... Rd1+ {[%clk 0:00:08.8]} 34. Ke2 {[%clk 0:00:16.5]} 34... Rxb1 {[%clk
0:00:08.3]} 35. Qxc6 {[%clk 0:00:15]} 35... Qc4+ {[%clk 0:00:08]} 36. Qxc4
{[%clk 0:00:12.9]} 36... bxc4 {[%clk 0:00:08.9]} 37. Bxe5 {[%clk 0:00:11.7]}
37... Rb4 {[%clk 0:00:08.9]} 38. Bc3 {[%clk 0:00:10.7]} 38... Rxa4 {[%clk
0:00:09.4]} 39. Ke3 {[%clk 0:00:10.4]} 39... Ra2 {[%clk 0:00:09.5]} 40. Kd4
{[%clk 0:00:10.9]} 40... Rxf2 {[%clk 0:00:08.5]} 41. Kxc4 {[%clk 0:00:11.2]}
41... Rxf5 {[%clk 0:00:05.1]} 42. Kb3 {[%clk 0:00:10.7]} 42... h5 {[%clk
0:00:05.6]} 43. Ka4 {[%clk 0:00:10.9]} 43... g6 {[%clk 0:00:06.5]} 44. Bxa5
{[%clk 0:00:11.2]} 44... Rxa5+ {[%clk 0:00:07.4]} 45. Kxa5 {[%clk 0:00:10.7]}
45... Kg7 {[%clk 0:00:08.3]} 46. Kb4 {[%clk 0:00:10.2]} 46... Kh6 {[%clk
0:00:09.2]} 47. Kc3 {[%clk 0:00:11.1]} 47... f5 {[%clk 0:00:10]} 48. Kd3 {[%clk
0:00:12]} 48... g5 {[%clk 0:00:10.6]} 49. Ke3 {[%clk 0:00:12.9]} 49... h4 {[%clk
0:00:11.5]} 50. Kf2 {[%clk 0:00:13.8]} 50... Kh5 {[%clk 0:00:11.6]} 51. Kg2
{[%clk 0:00:14.7]} 51... g4 {[%clk 0:00:11.8]} 0-1

[Event "*** SCC Grand Prix: Titled Tuesday Blitz"]
[Site "Chess.com"]
[Date "2020.08.25"]
[Round "3"]
[White "ElGasanov"]
[Black "Brave_spirit12"]
[Result "0-1"]
[WhiteElo "2752"]
[BlackElo "2541"]
[TimeControl "180+1"]
[EndTime "10:31:02 PDT"]
[Termination "Brave_spirit12 won on time"]

1. d4 {[%clk 0:03:00.9]} 1... Nf6 {[%clk 0:02:59.4]} 2. Nf3 {[%clk 0:02:59.1]}
2... e6 {[%clk 0:02:59.5]} 3. c4 {[%clk 0:02:57.9]} 3... d5 {[%clk 0:02:59.2]}
4. e3 {[%clk 0:02:57.1]} 4... Be7 {[%clk 0:02:58.4]} 5. a3 {[%clk 0:02:57.6]}
5... a6 {[%clk 0:02:56.6]} 6. b4 {[%clk 0:02:56.9]} 6... dxc4 {[%clk 0:02:55.4]}
7. Bxc4 {[%clk 0:02:56.1]} 7... b5 {[%clk 0:02:56.3]} 8. Bd3 {[%clk 0:02:56.8]}
8... Bb7 {[%clk 0:02:56.7]} 9. O-O {[%clk 0:02:54.6]} 9... O-O {[%clk 0:02:53]}
10. Qe2 {[%clk 0:02:55.1]} 10... Ne4 {[%clk 0:02:52.5]} 11. Qc2 {[%clk
0:02:50.5]} 11... f5 {[%clk 0:02:51]} 12. Ne5 {[%clk 0:02:48.1]} 12... Nd7
{[%clk 0:02:49.6]} 13. Nc6 {[%clk 0:02:45.6]} 13... Bxc6 {[%clk 0:02:42.7]} 14.
Qxc6 {[%clk 0:02:46.2]} 14... Nd6 {[%clk 0:02:43]} 15. Nd2 {[%clk 0:02:35]}
15... Nb6 {[%clk 0:02:37.3]} 16. Bb2 {[%clk 0:02:25.1]} 16... Nd5 {[%clk
0:02:14.2]} 17. Nb3 {[%clk 0:02:17.2]} 17... Qe8 {[%clk 0:02:06.2]} 18. Rfc1
{[%clk 0:02:14.3]} 18... Qg6 {[%clk 0:01:58.5]} 19. Nc5 {[%clk 0:02:06.1]} 19...
Rab8 {[%clk 0:01:49.5]} 20. Nd7 {[%clk 0:02:04.9]} 20... Rbe8 {[%clk 0:01:43.2]}
21. Nxf8 {[%clk 0:01:55.7]} 21... Rxf8 {[%clk 0:01:44.1]} 22. Qxa6 {[%clk
0:01:49.8]} 22... Qg5 {[%clk 0:01:37.7]} 23. f4 {[%clk 0:01:34.7]} 23... Qg4
{[%clk 0:01:33.7]} 24. Re1 {[%clk 0:01:32.9]} 24... Bh4 {[%clk 0:01:31.3]} 25.
Re2 {[%clk 0:01:27.3]} 25... Rf6 {[%clk 0:01:27.4]} 26. Qa8+ {[%clk 0:01:25]}
26... Kf7 {[%clk 0:01:26.8]} 27. Rf1 {[%clk 0:01:15]} 27... Nc4 {[%clk
0:01:19.5]} 28. Qc6 {[%clk 0:00:56]} 28... Ncxe3 {[%clk 0:01:14.7]} 29. Rf3
{[%clk 0:00:47.5]} 29... Nxg2 {[%clk 0:00:51.8]} 30. Qd7+ {[%clk 0:00:27.1]}
30... Ne7 {[%clk 0:00:49.7]} 31. Rxg2 {[%clk 0:00:19.9]} 31... Qxf3 {[%clk
0:00:49.2]} 32. d5 {[%clk 0:00:15.6]} 32... Qe3+ {[%clk 0:00:36.6]} 33. Kh1
{[%clk 0:00:16.1]} 33... exd5 {[%clk 0:00:25.2]} 34. Bxf6 {[%clk 0:00:15.2]}
34... Bxf6 {[%clk 0:00:26.1]} 35. Bxf5 {[%clk 0:00:15.2]} 35... d4 {[%clk
0:00:22]} 36. h3 {[%clk 0:00:14.1]} 36... g6 {[%clk 0:00:17.4]} 37. Bb1 {[%clk
0:00:09.7]} 37... Qc1+ {[%clk 0:00:16]} 38. Rg1 {[%clk 0:00:09.3]} 38... Qxf4
{[%clk 0:00:14]} 39. Ba2+ {[%clk 0:00:08.4]} 39... Kg7 {[%clk 0:00:14]} 40. Qe6
{[%clk 0:00:08.5]} 40... Kh6 {[%clk 0:00:11.1]} 41. Qe2 {[%clk 0:00:06.2]} 41...
Be5 {[%clk 0:00:10.2]} 42. Rf1 {[%clk 0:00:04.3]} 42... Qg3 {[%clk 0:00:08.8]}
43. Qd2+ {[%clk 0:00:04.4]} 43... g5 {[%clk 0:00:08.5]} 44. Qg2 {[%clk
0:00:02.6]} 44... Qxg2+ {[%clk 0:00:08]} 45. Kxg2 {[%clk 0:00:02.3]} 45... Ng6
{[%clk 0:00:08.9]} 46. Rc1 {[%clk 0:00:02.2]} 46... d3 {[%clk 0:00:09.1]} 47.
Kf3 {[%clk 0:00:01.6]} 47... Bf4 {[%clk 0:00:07.9]} 0-1